bitfinex-derivatives/quotes_ETHF0:USTF0_20230402
["timestamp","ask_amount","ask_price","bid_price","bid_amount"]
[1680396668230,1.602,1813.1,1813.0,0.57766644]
[1680396668427,1.102,1813.1,1813.0,0.57766644]
[1680396668828,1.15275933,1813.1,1813.0,0.57766644]
[1680396670633,1.65275933,1813.1,1812.9,0.57766644]
[1680396670839,4.3058,1813.0,1812.9,0.57766644]
[1680396673838,4.3058,1813.0,1812.8,0.57766644]
[1680396674138,1.092,1812.9,1812.8,0.57766644]
[1680396674337,1.592,1812.9,1812.8,0.57766644]
[1680396674540,1.092,1812.9,1812.8,0.57766644]
[1680396675243,1.592,1812.9,1812.8,0.57766644]
[1680396676133,1.092,1812.9,1812.8,0.57766644]
[1680396682246,2.22422896,1813.1,1812.8,1.44379998]
[1680396682247,1.72422896,1813.1,1812.8,1.44379998]
[1680396682544,1.099,1812.9,1812.8,1.44379998]
[1680396682947,1.099,1812.9,1812.8,0.57766644]
[1680396683745,1.14983793,1812.9,1812.8,0.57766644]
[1680396685348,1.14983793,1812.9,1812.8,1.44379998]
[1680396685852,1.14983793,1812.9,1812.8,0.57766644]
[1680396686246,0.05083793,1812.9,1812.8,0.86613354]
[1680396686444,0.05083793,1812.9,1812.7,1.65556722]
[1680396686652,1.101,1813.1,1812.8,4.36336722]
[1680396686955,1.101,1813.1,1813.0,0.57739341]
[1680396687255,0.57246963,1813.2,1813.0,0.57739341]
[1680396687451,1.66446963,1813.3,1813.1,0.57739341]
[1680396687649,1.092,1813.3,1813.1,0.57739341]
[1680396687851,1.092,1813.3,1813.1,1.44348352]
[1680396688148,1.092,1813.3,1813.2,0.5]
[1680396688348,1.092,1813.3,1813.2,1.07739341]
[1680396688653,0.57246963,1813.4,1813.2,0.57739341]
[1680396689457,1.67446963,1813.3,1813.2,0.57739341]
[1680396689659,1.67446963,1813.3,1813.1,0.57739341]
[1680396690446,4.3098,1813.3,1813.1,0.57739341]
[1680396690654,4.3098,1813.3,1813.1,1.44348352]
[1680396690856,4.3098,1813.3,1813.1,0.57739341]
[1680396691056,4.3098,1813.3,1813.1,1.44348352]
[1680396691258,1.102,1813.2,1813.1,0.57739341]
[1680396691455,1.602,1813.2,1813.1,1.44348352]
[1680396691659,1.102,1813.2,1813.1,1.44348352]
[1680396692257,1.602,1813.2,1813.1,0.57739341]
[1680396692554,0.5,1813.1,1813.0,0.57739341]
[1680396692757,1.602,1813.1,1813.0,0.86609011]
[1680396692955,1.102,1813.1,1813.0,0.86609011]
[1680396693356,1.102,1813.1,1813.0,1.4437353]
[1680396693563,4.8098,1813.1,1813.0,0.86609011]
[1680396693758,4.3098,1813.1,1813.0,0.86609011]
[1680396694054,1.102,1813.1,1813.0,0.86609011]
[1680396694856,1.102,1813.1,1813.0,1.36609011]
[1680396695062,1.102,1813.1,1813.0,0.86609011]
[1680396696256,4.3098,1813.1,1813.0,1.44373061]
[1680396696663,4.3098,1813.1,1813.0,0.86609011]
[1680396696963,4.3098,1813.1,1813.0,1.44376518]
[1680396698066,4.3098,1813.1,1813.0,0.57767507]
[1680396699270,4.88226963,1813.1,1813.0,0.57767507]
[1680396701672,1.102,1813.1,1813.0,0.57767507]
[1680396701870,1.102,1813.1,1813.0,0.86609011]
[1680396702069,0.57246963,1813.2,1813.0,1.36609011]
[1680396702269,0.57246963,1813.2,1813.1,0.57780089]
[1680396702467,0.57246963,1813.3,1813.1,0.5]
[1680396702767,0.57246963,1813.3,1813.1,7.90396025]
[1680396703071,0.57246963,1813.3,1813.1,6.53787014]
[1680396703259,0.57246963,1813.2,1813.1,6.53787014]
[1680396703666,0.57246963,1813.3,1813.1,6.8261872]
[1680396703862,0.57246963,1813.3,1813.2,0.5778145]
[1680396704167,0.85877628,1813.3,1813.1,6.53791159]
[1680396704367,0.57269214,1813.3,1813.2,1.0778145]
[1680396704567,0.57269214,1813.4,1813.2,1.94390461]
[1680396704766,0.57269214,1813.4,1813.2,1.44390461]
[1680396704975,0.57269214,1813.4,1813.2,1.94390461]
[1680396705169,0.57269214,1813.4,1813.3,0.5778145]
[1680396708575,0.57269214,1813.4,1813.2,1.94390461]
[1680396708766,0.57269214,1813.4,1813.3,0.5778145]
[1680396710573,0.57269214,1813.4,1813.2,1.44390461]
[1680396711168,0.57269214,1813.4,1813.3,0.5778145]
[1680396711374,3.02846842,1813.5,1813.3,0.5778145]
[1680396711574,0.57269214,1813.4,1813.3,0.5778145]
[1680396711872,1.07269214,1813.4,1813.3,0.5778145]
[1680396712068,1.07269214,1813.4,1813.2,1.44390461]
[1680396712276,0.57269214,1813.4,1813.2,1.44390461]
[1680396712675,0.57269214,1813.4,1813.2,0.5778145]
[1680396713479,0.57269214,1813.4,1813.2,1.0778145]
[1680396713671,2.52846842,1813.5,1813.3,0.5778145]
[1680396714271,2.52846842,1813.5,1813.2,1.94390461]
[1680396714476,2.52846842,1813.5,1813.3,0.5778145]
[1680396714679,1.66969214,1813.5,1813.2,1.94390461]
[1680396715084,0.57269214,1813.4,1813.2,0.5778145]
[1680396715279,1.07269214,1813.4,1813.2,0.5778145]
[1680396715694,1.102,1813.3,1813.1,1.44390461]
[1680396715992,1.102,1813.3,1813.1,0.5778145]
[1680396716184,1.102,1813.3,1813.1,1.44390461]
[1680396716485,1.102,1813.3,1813.2,6.78708468]
[1680396717083,0.57269214,1813.4,1813.2,6.78708468]
[1680396717486,0.57269214,1813.5,1813.2,9.24617479]
[1680396717680,0.57269214,1813.6,1813.4,1.6798145]
[1680396717883,0.57269214,1813.6,1813.4,2.1798145]
[1680396718087,0.57269214,1813.6,1813.4,0.5778145]
[1680396718289,1.07269214,1813.6,1813.4,0.5778145]
[1680396718691,1.07269214,1813.6,1813.3,0.63286629]
[1680396719393,0.57269214,1813.6,1813.3,0.63286629]
[1680396719591,0.57269214,1813.6,1813.4,0.5778145]
[1680396720301,0.57269214,1813.6,1813.5,6.16392286]
[1680396720489,5.16857628,1813.7,1813.5,6.16392286]
[1680396720490,5.74126842,1813.7,1813.5,6.16392286]
[1680396720688,0.57269214,1813.6,1813.5,6.16392286]
[1680396721090,5.74126842,1813.7,1813.5,6.16392286]
[1680396722595,0.57269214,1813.6,1813.5,6.16392286]
[1680396722995,5.74126842,1813.7,1813.5,6.16392286]
[1680396723195,2.53346842,1813.7,1813.5,6.16392286]
[1680396723391,1.67469214,1813.7,1813.5,6.16392286]
[1680396724598,2.53346842,1813.7,1813.5,6.16392286]
[1680396724997,1.67469214,1813.7,1813.5,6.16392286]
[1680396726092,0.57269214,1813.7,1813.5,9.94953736]
[1680396727499,0.57269214,1813.7,1813.5,9.37172286]
[1680396728600,0.57269214,1813.7,1813.5,9.94953736]
[1680396728802,0.57269214,1813.7,1813.6,0.051251]
[1680396729998,1.67169214,1813.8,1813.6,6.09911325]
[1680396730500,2.53046842,1813.8,1813.6,6.09911325]
[1680396730703,1.67169214,1813.8,1813.6,6.09911325]
[1680396730908,1.67169214,1813.8,1813.6,7.17692775]
[1680396731103,0.57269214,1813.8,1813.7,3.2078]
[1680396731305,0.57269214,1813.8,1813.7,3.7078]
[1680396731603,1.43146842,1814.0,1813.7,11.66800426]
[1680396731814,1.43146842,1814.0,1813.8,0.5]
[1680396731815,0.57269214,1814.0,1813.8,0.5]
[1680396732306,0.57269214,1814.0,1813.9,9.2951617]
[1680396732900,1.67469214,1814.0,1813.9,6.0873617]
[1680396733208,1.96077628,1814.0,1813.6,1.7310655]
[1680396733410,0.57232905,1813.9,1813.6,2.2310655]
[1680396733708,3.03310533,1814.0,1813.6,2.2310655]
[1680396733909,3.03310533,1814.0,1813.7,6.22802619]
[1680396734101,2.53310533,1814.0,1813.7,6.72802619]
[1680396734303,1.67432905,1814.0,1813.7,6.72802619]
[1680396734503,1.67432905,1814.0,1813.7,10.51364069]
[1680396734703,1.67432905,1814.0,1813.7,9.93582619]
[1680396735306,1.67432905,1814.0,1813.7,9.43582619]
[1680396737110,0.57232905,1814.0,1813.7,9.43582619]
[1680396737907,5.74090533,1814.1,1813.7,9.43582619]
[1680396738205,5.74090533,1814.1,1813.7,14.92582619]
[1680396738206,1.67432905,1814.1,1813.7,14.92582619]
[1680396738412,0.57232905,1814.1,1813.9,3.2078]
[1680396738605,0.57232905,1814.2,1813.9,0.5]
[1680396738806,0.57232905,1814.1,1814.0,5.84210527]
[1680396739413,0.57232905,1814.2,1814.0,5.84210527]
[1680396740109,0.57232905,1814.1,1814.0,5.84210527]
[1680396741818,0.57232905,1814.2,1814.0,5.84210527]
[1680396743817,0.57232905,1814.2,1814.1,0.10575088]
[1680396745415,1.67432905,1814.2,1814.1,6.08090307]
[1680396746623,2.53310533,1814.2,1814.1,6.08090307]
[1680396747024,1.67432905,1814.2,1814.1,6.08090307]
[1680396747424,1.67432905,1814.2,1814.1,0.10575088]
[1680396747627,2.17432905,1814.2,1814.1,0.10575088]
[1680396747924,2.17432905,1814.2,1813.8,0.5]
[1680396748519,2.17432905,1814.2,1813.9,6.13549654]
[1680396748718,1.67432905,1814.2,1813.9,6.13549654]
[1680396749327,2.17432905,1814.2,1813.9,6.13549654]
[1680396749925,1.67432905,1814.2,1813.9,6.13549654]
[1680396751526,0.57232905,1814.2,1814.1,1.102]
[1680396751828,0.57232905,1814.3,1814.1,1.102]
[1680396752031,0.57232905,1814.3,1814.1,6.83838149]
[1680396753531,1.67432905,1814.3,1814.1,5.73638149]
[1680396754125,0.5,1814.2,1814.1,5.73638149]
[1680396754341,2.17432905,1814.2,1813.8,3.2078]
[1680396755229,2.17432905,1814.2,1813.9,6.15676954]
[1680396756529,3.03310533,1814.2,1813.9,6.15676954]
[1680396756935,2.53310533,1814.2,1813.9,6.15676954]
[1680396757234,0.57232905,1814.1,1813.9,6.15676954]
[1680396757433,1.67432905,1814.1,1813.9,6.15676954]
[1680396758737,1.67432905,1814.1,1813.9,6.15200526]
[1680396758935,1.67432905,1814.1,1814.0,0.12414145]
[1680396761531,5.45492503,1814.1,1814.0,0.12414145]
[1680396761732,0.5,1814.0,1813.6,4.7657]
[1680396761925,4.88191312,1813.9,1813.6,4.7657]
[1680396762137,5.74008281,1813.9,1813.6,4.7657]
[1680396762634,0.57211312,1813.8,1813.6,0.5778145]
[1680396763040,0.57211312,1813.8,1813.5,8.21780461]
[1680396763244,0.57211312,1813.8,1813.6,0.5778145]
[1680396763930,0.57211312,1813.8,1813.5,8.21780461]
[1680396764641,1.43028281,1813.8,1813.6,6.73313103]
[1680396765135,0.57211312,1813.7,1813.6,6.15531653]
[1680396766731,4.88191312,1813.7,1813.5,5.7497145]
[1680396766942,4.88191312,1813.7,1813.5,0.5778145]
[1680396766943,5.74008281,1813.7,1813.5,0.5778145]
[1680396767144,1.102,1813.6,1813.5,0.5778145]
[1680396767341,1.67411312,1813.6,1813.4,0.5778145]
[1680396767536,1.102,1813.6,1813.4,0.5778145]
[1680396768145,1.67411312,1813.6,1813.4,0.5778145]
[1680396769444,1.102,1813.6,1813.4,0.5778145]
[1680396770442,1.67411312,1813.6,1813.4,0.5778145]
[1680396771544,1.102,1813.6,1813.4,0.5778145]
[1680396773342,1.102,1813.6,1813.3,0.5778145]
[1680396773343,4.3098,1813.5,1813.3,0.5778145]
[1680396773543,4.88191312,1813.5,1813.3,0.5778145]
[1680396773841,0.5,1813.4,1813.3,0.5778145]
[1680396774046,0.5,1813.4,1813.2,1.44390461]
[1680396774246,3.2078,1813.3,1813.2,1.44390461]
[1680396774444,3.2078,1813.3,1813.2,0.86609011]
[1680396775543,3.2078,1813.3,1813.2,1.4431983]
[1680396777447,3.2078,1813.3,1813.2,0.57710819]
[1680396778244,4.8098,1813.5,1813.2,0.57710819]
[1680396778549,1.102,1813.4,1813.2,0.57710819]
[1680396779645,4.3098,1813.3,1813.2,0.57710819]
[1680396779941,3.2078,1813.3,1813.1,0.57710819]
[1680396780545,3.2078,1813.3,1813.2,6.39860008]
[1680396781554,3.2078,1813.3,1813.1,0.57710819]
[1680396784146,3.2078,1813.3,1813.0,1.07710819]
[1680396784349,3.2078,1813.3,1813.1,0.57710819]
[1680396784750,3.2078,1813.3,1813.0,1.9431983]
[1680396784951,3.2078,1813.3,1813.1,0.57710819]
[1680396785150,3.2078,1813.3,1813.1,1.07710819]
[1680396785353,1.102,1813.4,1813.1,1.07710819]
[1680396786051,1.102,1813.4,1813.1,0.57710819]
[1680396789456,1.102,1813.2,1812.9,3.78490819]
[1680396789954,1.102,1813.2,1813.0,1.07710819]
[1680396790156,1.102,1813.2,1813.0,6.8751881]
[1680396791054,3.24659769,1813.3,1813.0,6.8751881]
[1680396791555,0.57211312,1813.6,1813.2,5.4098]
[1680396791749,0.57211312,1813.8,1813.5,4.3078]
[1680396792054,0.57211312,1813.8,1813.6,0.16436146]
[1680396792247,1.67411312,1813.9,1813.6,0.66436146]
[1680396792664,1.67411312,1813.9,1813.6,0.16436146]
[1680396792955,1.67411312,1813.7,1813.2,0.57710819]
[1680396793152,1.093,1813.5,1813.3,3.2078]
[1680396796960,1.102,1813.6,1813.3,3.2078]
[1680396798355,1.67411312,1813.6,1813.2,1.67910819]
[1680396800462,1.67411312,1813.6,1813.2,4.88690819]
[1680396800762,1.102,1813.4,1813.2,3.78490819]
[1680396801661,0.57211312,1813.6,1813.2,3.78490819]
[1680396801662,1.67411312,1813.6,1813.3,0.57710819]
[1680396801859,1.102,1813.6,1813.4,3.2078]
[1680396802059,0.57211312,1813.7,1813.5,0.5]
[1680396802260,0.57211312,1813.7,1813.6,3.2078]
[1680396802454,0.57211312,1813.7,1813.5,9.4974947]
[1680396802660,0.57211312,1813.7,1813.5,3.7078]
[1680396802961,0.57211312,1813.7,1813.5,3.2078]
[1680396803266,0.57211312,1813.7,1813.6,6.33590356]
[1680396805470,1.43028281,1813.7,1813.6,6.33590356]
[1680396805767,0.57211312,1813.7,1813.6,6.33590356]
[1680396808970,0.57211312,1813.7,1813.6,6.91301175]
[1680396812478,0.57211312,1813.9,1813.6,13.42790356]
[1680396812774,0.57211312,1813.9,1813.8,3.78534169]
[1680396812976,0.57211312,1813.9,1813.8,4.88534169]
[1680396813172,0.5727931,1814.1,1813.8,16.99264066]
[1680396813365,0.5727931,1814.1,1814.0,5.4088]
[1680396813677,0.5727931,1814.1,1814.0,11.85716166]
[1680396814976,1.43096279,1814.2,1814.0,11.85716166]
[1680396815280,0.5727931,1814.2,1814.1,0.5]
[1680396815670,0.5727931,1814.2,1814.1,6.15104609]
[1680396816465,1.43096279,1814.2,1814.1,6.15104609]
[1680396817274,0.5727931,1814.2,1814.1,6.15104609]
[1680396818879,0.5727931,1814.2,1814.1,6.26803144]
[1680396820974,1.6747931,1814.3,1814.1,6.26803144]
[1680396821280,1.102,1814.3,1814.2,3.2078]
[1680396822879,0.5727931,1814.4,1814.2,3.2078]
[1680396823081,0.5727931,1814.4,1814.2,9.20884806]
[1680396827285,3.03296279,1814.5,1814.2,9.20884806]
[1680396827483,1.0727931,1814.4,1814.1,1.21898535]
[1680396827682,0.5,1814.3,1814.1,1.21898535]
[1680396828684,1.0727931,1814.4,1814.1,1.21898535]
[1680396830393,1.593,1814.3,1814.1,0.11698535]
[1680396831288,1.093,1814.3,1814.1,0.11698535]
[1680396831892,1.6747931,1814.4,1814.1,0.11698535]
[1680396832093,1.6747931,1814.4,1814.2,6.33663971]
[1680396833988,1.6747931,1814.4,1814.3,0.11690906]
[1680396836295,2.53296279,1814.4,1814.3,0.11690906]
[1680396836687,1.6747931,1814.4,1814.3,0.11690906]
[1680396838298,2.53296279,1814.4,1814.3,0.11690906]
[1680396838493,2.53296279,1814.4,1814.0,3.2078]
[1680396838694,1.093,1814.2,1814.0,3.2078]
[1680396843695,1.093,1814.2,1814.1,5.97801169]
[1680396847095,1.6657931,1814.2,1814.1,5.97801169]
[1680396848693,1.6657931,1814.2,1814.1,6.47801169]
[1680396848894,1.093,1814.2,1814.1,6.09484446]
[1680396849503,1.093,1814.2,1814.1,6.59484446]
[1680396850502,1.093,1814.2,1814.1,6.09484446]
[1680396850903,0.5727931,1814.3,1814.1,6.59484446]
[1680396851106,0.5727931,1814.3,1814.2,3.7078]
[1680396851402,0.5727931,1814.3,1814.2,9.6606879]
[1680396854399,0.57285184,1814.6,1814.4,0.5]
[1680396854603,1.43212961,1814.7,1814.5,4.88697013]
[1680396854802,1.43212961,1814.7,1814.6,1.102]
[1680396854803,0.57285184,1814.7,1814.6,1.102]
[1680396855008,0.57285184,1814.7,1814.6,1.602]
[1680396855306,0.57261455,1814.7,1814.6,7.89675062]
[1680396856207,0.57261455,1814.7,1814.6,7.89475062]
[1680396857204,1.43189232,1814.8,1814.6,7.89475062]
[1680396857407,0.85927777,1814.8,1814.7,3.2078]
[1680396857606,1.14570369,1814.9,1814.7,11.4008]
[1680396857607,0.85884859,1814.9,1814.7,11.4008]
[1680396857912,0.57262021,1815.0,1814.8,2.17917013]
[1680396858114,0.57262021,1815.0,1814.9,4.8078]
[1680396858312,0.57262021,1815.0,1814.9,10.85721376]
[1680396858610,0.57262021,1815.1,1814.9,10.85721376]
[1680396859204,1.64570369,1815.3,1815.0,0.5]
[1680396859205,1.14570369,1815.3,1815.0,0.5]
[1680396859414,0.57198769,1815.2,1815.1,3.2078]
[1680396859603,0.57198769,1815.2,1815.1,9.31463881]
[1680396860802,1.64570369,1815.3,1815.1,9.31463881]
[1680396861003,0.57198836,1815.2,1815.1,9.31463881]
[1680396861704,1.64570369,1815.3,1815.1,6.10683881]
[1680396862003,0.57194676,1815.2,1815.1,6.10683881]
[1680396864005,1.07194676,1815.3,1815.1,6.3365539]
[1680396865005,0.57194676,1815.3,1815.1,6.3365539]
[1680396865799,1.102,1815.2,1815.1,0.22971509]
[1680396866006,0.5,1815.1,1814.9,3.2078]
[1680396866613,0.5,1815.1,1814.8,1.101]
[1680396867001,2.17394676,1815.2,1814.7,10.2998]
[1680396867213,2.17394676,1815.2,1814.9,3.2078]
[1680396867407,2.17394676,1815.2,1814.9,9.0843501]
[1680396867710,1.102,1815.2,1814.9,3.7078]
[1680396867913,1.67394676,1815.2,1814.9,3.2078]
[1680396868112,1.102,1815.2,1814.9,3.2078]
[1680396868312,1.67394676,1815.2,1814.9,3.2078]
[1680396868511,1.67394676,1815.2,1815.0,6.36227689]
[1680396868716,1.67394676,1815.2,1815.0,6.86227689]
[1680396868717,1.102,1815.2,1815.0,6.86227689]
[1680396869209,1.102,1815.2,1815.0,6.36227689]
[1680396869614,1.67394676,1815.2,1815.0,6.36227689]
[1680396870111,1.102,1815.2,1815.0,6.36227689]
[1680396870705,1.67394676,1815.2,1815.0,6.36227689]
[1680396870902,1.102,1815.2,1815.0,6.36227689]
[1680396877024,1.67394676,1815.3,1815.0,6.36227689]
[1680396879126,1.67394676,1815.3,1815.1,0.23010648]
[1680396880230,1.67394676,1815.3,1815.0,6.36227689]
[1680396882232,0.57194676,1815.2,1815.0,6.36227689]
[1680396882432,1.67394676,1815.3,1815.0,6.36227689]
[1680396885138,0.57194676,1815.2,1815.0,6.36227689]
[1680396885931,0.57194676,1815.3,1815.1,3.2078]
[1680396890636,0.57194676,1815.3,1815.2,6.10957073]
[1680396894142,1.102,1815.4,1815.2,6.10957073]
[1680396894336,2.24770369,1815.4,1815.2,6.10957073]
[1680396897041,1.14570369,1815.4,1815.2,6.10957073]
[1680396898565,2.24770369,1815.3,1815.2,6.10957073]
[1680396898747,2.24770369,1815.3,1815.1,3.2078]
[1680396899043,0.5,1815.2,1815.1,3.2078]
[1680396899243,1.64570369,1815.2,1815.1,3.2078]
[1680396900247,1.14570369,1815.2,1815.1,3.2078]
[1680396902847,2.74770369,1815.2,1814.9,3.78497013]
[1680396903152,2.24770369,1815.1,1814.9,4.65072533]
[1680396903645,2.24770369,1815.1,1815.0,6.25532998]
[1680396903849,1.14570369,1815.2,1815.0,6.83250011]
[1680396904043,1.14570369,1815.1,1815.0,6.83250011]
[1680396904346,1.14570369,1815.2,1815.0,6.83250011]
[1680396904540,1.14570369,1815.2,1815.1,3.2078]
[1680396906147,1.14570369,1815.2,1815.1,9.05143852]
[1680396907047,2.74770369,1815.2,1815.1,9.05143852]
[1680396907252,2.24770369,1815.2,1815.1,3.2078]
[1680396911548,0.5,1815.1,1814.9,4.65072533]
[1680396911754,2.74910175,1815.1,1814.9,0.57717013]
[1680396912057,0.5,1815.0,1814.9,0.57717013]
[1680396913158,2.74910175,1815.1,1814.9,0.57717013]
[1680396916755,2.24910175,1815.1,1814.9,0.57717013]
[1680396917163,2.24910175,1815.1,1814.9,3.78497013]
[1680396917557,0.86036404,1815.0,1814.9,3.78497013]
[1680396918361,2.80304121,1815.0,1814.8,0.57717013]
[1680396918561,1.14709337,1814.9,1814.8,0.57717013]
[1680396918759,1.64709337,1814.9,1814.8,0.57717013]
[1680396919361,0.5,1814.9,1814.8,0.57717013]
[1680396920058,1.64709337,1814.9,1814.8,0.57717013]
[1680396920662,1.64709337,1814.9,1814.7,0.57717013]
[1680396920961,0.86014725,1814.8,1814.7,0.57717013]
[1680396922863,0.86014725,1814.8,1814.6,0.8657552]
[1680396922864,0.86014725,1814.8,1814.6,1.44292533]
[1680396923160,0.5732534,1814.7,1814.6,1.44292533]
[1680396923356,0.5732534,1814.7,1814.6,0.57717013]
[1680396927862,0.5732534,1814.7,1814.5,4.65072533]
[1680396928262,0.5732534,1814.7,1814.5,3.78497013]
[1680396928462,0.5732534,1814.7,1814.5,4.65072533]
[1680396928865,0.5732534,1814.7,1814.5,0.57717013]
[1680396929062,1.0732534,1814.7,1814.5,0.57215331]
[1680396929266,0.5732534,1814.7,1814.5,0.57215331]
[1680396929661,1.93340065,1814.7,1814.5,0.57215331]
[1680396929864,1.102,1814.6,1814.5,0.57215331]
[1680396930061,2.1752534,1814.6,1814.5,0.57215331]
[1680396930264,1.6752534,1814.6,1814.4,0.8657552]
[1680396931171,1.102,1814.6,1814.3,4.0735552]
[1680396931761,1.102,1814.6,1814.4,6.44416827]
[1680396932067,1.102,1814.6,1814.4,5.94416827]
[1680396932875,1.102,1814.6,1814.3,4.0735552]
[1680396933272,1.102,1814.6,1814.3,4.5735552]
[1680396933472,0.06751685,1814.5,1814.3,4.5735552]
[1680396933672,0.06751685,1814.5,1814.3,4.0735552]
[1680396935175,0.06751685,1814.5,1814.3,4.5735552]
[1680396935677,0.06751685,1814.5,1814.3,4.0735552]
[1680396937579,0.06751685,1814.5,1814.3,4.5735552]
[1680396939373,0.826,1814.4,1814.3,4.0735552]
[1680396939777,0.826,1814.4,1814.3,3.2078]
[1680396941772,4.8548,1814.4,1814.2,0.8657552]
[1680396941976,6.28840065,1814.3,1813.8,0.8657552]
[1680396942166,0.826,1814.0,1813.8,0.8657552]
[1680396942372,1.603,1814.0,1813.8,0.8657552]
[1680396942571,1.103,1814.0,1813.8,0.8657552]
[1680396943172,1.103,1814.0,1813.7,4.5735552]
[1680396946982,1.103,1814.0,1813.7,4.0735552]
[1680396947183,1.103,1814.0,1813.7,3.7078]
[1680396947881,1.103,1814.0,1813.7,4.5735552]
[1680396948285,1.103,1814.0,1813.7,3.2078]
[1680396948475,0.18006795,1813.9,1813.7,3.2078]
[1680396949277,0.18006795,1813.9,1813.6,0.5]
[1680396950479,0.18006795,1813.9,1813.5,5.6665552]
[1680396950676,1.103,1813.8,1813.5,4.5735552]
[1680396950881,1.103,1813.8,1813.6,0.5]
[1680396952789,1.103,1813.8,1813.5,4.5735552]
[1680396953487,1.103,1813.8,1813.6,6.6735928]
[1680396953876,1.103,1813.8,1813.7,0.5]
[1680396954182,1.103,1813.8,1813.6,6.6735928]
[1680396955890,1.103,1813.8,1813.6,6.1735928]
[1680396957091,1.103,1813.7,1813.6,6.1735928]
[1680396957990,1.103,1813.7,1813.5,3.2078]
[1680396959788,1.103,1813.7,1813.5,3.7078]
[1680396961096,1.103,1813.7,1813.6,0.5]
[1680396961296,1.103,1813.8,1813.6,0.5]
[1680396961794,1.103,1813.8,1813.7,3.2078]
[1680396963592,1.26549184,1813.8,1813.7,3.2078]
[1680396964493,1.26549184,1813.8,1813.5,4.5735552]
[1680396964696,1.26549184,1813.8,1813.5,3.7078]
[1680396965189,1.26549184,1813.8,1813.6,6.0915347]
[1680396965391,1.26549184,1813.8,1813.6,6.5915347]
[1680396967101,1.26549184,1813.8,1813.6,6.0915347]
[1680396970302,1.26549184,1813.8,1813.6,6.5915347]
[1680396970793,1.26549184,1813.8,1813.7,3.2078]
[1680396975498,1.26549184,1813.8,1813.7,9.57837548]
[1680396976503,9.184e-05,1813.8,1813.7,9.57837548]
[1680396976706,1.103,1814.2,1813.7,11.54713068]
[1680396977003,0.14441285,1814.1,1814.0,0.5]
[1680396977206,1.103,1814.2,1814.0,0.5]
[1680396977406,1.103,1814.2,1813.9,3.2078]
[1680396977806,1.103,1814.2,1814.0,0.5]
[1680396978305,1.103,1814.2,1814.0,6.83503249]
[1680396978510,1.103,1814.2,1814.1,0.5]
[1680396978810,1.103,1814.2,1814.0,6.83503249]
[1680396979009,1.103,1814.2,1814.0,6.33503249]
[1680396979503,1.103,1814.2,1814.0,6.83503249]
[1680396980217,1.103,1814.2,1814.0,6.33503249]
[1680396981702,0.57209031,1814.5,1814.1,4.8108]
[1680396981912,0.57209031,1814.5,1814.2,0.5]
[1680396982112,0.57209031,1814.5,1814.2,6.86318676]
[1680396984626,0.57209031,1814.5,1814.2,6.36318676]
[1680396985023,0.57209031,1814.6,1814.4,4.3108]
[1680396985232,0.57209031,1814.6,1814.5,0.5]
[1680396985523,1.43223756,1814.7,1814.5,6.36935866]
[1680396985718,0.57209031,1814.7,1814.5,6.36935866]
[1680396986028,1.43223756,1814.8,1814.6,3.2078]
[1680396986718,0.57209031,1814.7,1814.6,3.2078]
[1680396987321,0.57209031,1814.7,1814.4,4.8108]
[1680396988024,0.57209031,1814.7,1814.5,5.98821979]
[1680396990828,1.66509031,1814.7,1814.5,5.98821979]
[1680396991126,1.093,1814.7,1814.4,6.26943293]
[1680396991325,1.66509031,1814.7,1814.4,6.26943293]
[1680396991735,1.093,1814.7,1814.4,6.26943293]
[1680396992832,1.093,1814.7,1814.4,9.47723293]
[1680396993433,0.0624939,1814.6,1814.4,9.47723293]
[1680396993640,1.093,1814.7,1814.4,9.47723293]
[1680396994133,1.093,1814.7,1814.5,0.5]
[1680396994524,1.093,1814.7,1814.6,5.96463244]
[1680396995832,1.67509031,1814.9,1814.6,9.17243244]
[1680396996331,0.57209031,1815.0,1814.8,3.2078]
[1680396996531,3.02623756,1815.1,1814.8,3.2078]
[1680396996736,2.52623756,1815.1,1814.8,3.2078]
[1680396996937,1.66609031,1815.1,1814.8,3.2078]
[1680396997131,2.16609031,1815.1,1814.8,3.2078]
[1680396999030,1.66609031,1815.1,1814.8,3.2078]
[1680396999336,2.16609031,1815.1,1814.8,3.2078]
[1680397000639,1.594,1815.1,1814.8,3.2078]
[1680397000838,2.16609031,1815.1,1814.8,3.2078]
[1680397001136,2.16609031,1815.1,1814.6,4.3008]
[1680397001935,0.5,1815.0,1814.7,6.36791987]
[1680397002839,1.103,1814.9,1814.7,6.36791987]
[1680397006645,4.8108,1814.8,1814.2,4.3108]
[1680397006941,4.8108,1814.8,1814.2,3.2078]
[1680397006942,1.094,1814.5,1814.2,3.2078]
[1680397008542,0.06285233,1814.4,1814.2,3.2078]
[1680397009347,0.06285233,1814.4,1814.3,6.25587201]
[1680397009645,0.06285233,1814.4,1814.3,6.75587201]
[1680397009848,0.06285233,1814.4,1814.3,6.25587201]
[1680397011041,0.06285233,1814.4,1814.3,6.75587201]
[1680397011548,1.103,1814.7,1814.3,6.75587201]
[1680397011845,1.103,1814.7,1814.5,3.2078]
[1680397012045,0.06287042,1814.6,1814.5,3.2078]
[1680397012452,1.103,1814.7,1814.5,3.29146349]
[1680397014251,1.66609031,1814.9,1814.5,3.29146349]
[1680397015346,1.66609031,1814.9,1814.7,3.2078]
[1680397015850,1.66609031,1814.9,1814.8,6.11237265]
[1680397016451,1.094,1814.9,1814.8,6.11237265]
[1680397016848,1.66609031,1814.9,1814.8,6.11237265]
[1680397023561,1.72855412,1814.9,1814.8,6.11237265]
[1680397023762,2.01661106,1814.9,1814.8,6.11237265]
[1680397025759,1.72885265,1814.9,1814.8,6.11237265]
[1680397027861,2.01661106,1814.9,1814.8,6.11237265]
[1680397032369,1.74861106,1814.9,1814.8,6.11237265]
[1680397035066,0.92261106,1814.9,1814.8,7.43837265]
[1680397035267,0.92261106,1814.9,1814.8,6.93837265]
[1680397035864,1.74861106,1814.9,1814.8,6.11237265]
[1680397036667,0.88846381,1814.9,1814.8,6.11237265]
[1680397037169,0.88546381,1814.9,1814.8,6.11237265]
[1680397037867,2.03255718,1814.9,1814.8,6.11237265]
[1680397038672,2.0117681,1814.9,1814.8,6.11237265]
[1680397039168,2.0117681,1814.9,1814.6,0.8657552]
[1680397039370,0.57282114,1814.7,1814.6,0.8657552]
[1680397039565,0.57282114,1814.7,1814.5,2.1917552]
[1680397039770,0.57282114,1814.7,1814.6,6.03097405]
[1680397040670,0.57282114,1814.7,1814.6,6.89672925]